bitfinex/quotes_SOLUSD_20240918
["timestamp","ask_amount","ask_price","bid_price","bid_amount"]
[1726654536863,7.7736,128.64,128.63,16.2605]
[1726654537067,7.7724,128.66,128.63,16.2605]
[1726654537246,20.0,128.72,128.63,16.2605]
[1726654537450,19.4219,128.73,128.63,16.2605]
[1726654537768,19.4219,128.73,128.63,24.0342]
[1726654538063,7.7705,128.7,128.64,7.7735]
[1726654538257,7.7706,128.69,128.64,7.7735]
[1726654538449,7.77,128.7,128.64,7.7735]
[1726654538648,7.7707,128.69,128.63,43.4691]
[1726654538868,19.4219,128.73,128.64,31.550384]
[1726654539047,7.7706,128.69,128.64,23.776884]
[1726654539573,38.8379,128.75,128.65,7.7725]
[1726654539762,7.7695,128.71,128.65,7.7725]
[1726654540064,7.7688,128.72,128.66,7.7724]
[1726654540267,7.769,128.72,128.66,7.7723]
[1726654541157,7.7696,128.71,128.65,27.2046]
[1726654541358,7.7701,128.7,128.65,27.2046]
[1726654541662,7.7695,128.71,128.66,7.7723]
[1726654541860,7.7695,128.71,128.66,31.549184]
[1726654542253,7.7689,128.72,128.66,31.549184]
[1726654542857,7.7689,128.72,128.68,6.3065]
[1726654543066,19.4165,128.76,128.68,6.3065]
[1726654543246,7.7682,128.73,128.68,14.0776]
[1726654544268,7.7682,128.73,128.68,6.3065]
[1726654544469,7.7689,128.72,128.68,6.3065]
[1726654544863,7.7683,128.73,128.69,16.346]
[1726654545751,7.7677,128.74,128.69,16.346]
[1726654545952,7.7677,128.74,128.69,24.1164]
[1726654546351,7.7671,128.75,128.69,24.1164]
[1726654546567,7.7678,128.74,128.69,24.1164]
[1726654546757,20.76457059,128.79,128.69,24.1164]
[1726654546758,7.767,128.75,128.69,24.1164]
[1726654546962,7.7676,128.74,128.69,24.1164]
[1726654547547,7.7664,128.76,128.71,7.7693]
[1726654547754,7.7664,128.76,128.69,35.7719]
[1726654547755,7.7658,128.77,128.69,16.346]
[1726654548065,58.2089,128.85,128.75,15.9492]
[1726654548259,7.7646,128.79,128.75,15.9492]
[1726654549351,1.35247194,128.83,128.75,15.9492]
[1726654549551,7.7663,128.76,128.75,15.9492]
[1726654549759,19.4152,128.77,128.71,15.3147]
[1726654549955,7.7684,128.73,128.71,15.3147]
[1726654550671,7.7677,128.74,128.71,15.3147]
[1726654551679,7.7683,128.73,128.71,15.3147]
[1726654551870,19.4152,128.77,128.71,15.3147]
[1726654552285,7.7677,128.74,128.71,15.3147]
[1726654552865,19.419,128.74,128.67,22.4484]
[1726654553171,7.7712,128.68,128.67,22.4484]
[1726654553386,19.419,128.74,128.67,22.4484]
[1726654553762,7.7708,128.69,128.67,22.4484]
[1726654553971,19.419,128.74,128.67,22.4484]
[1726654554187,7.77,128.71,128.67,22.4484]
[1726654554388,19.419,128.74,128.67,22.4484]
[1726654554769,7.7702,128.7,128.67,22.4484]
[1726654555987,7.7712,128.68,128.67,22.4484]
[1726654556691,7.7706,128.69,128.67,22.4484]
[1726654556990,7.77,128.7,128.67,22.4484]
[1726654557494,7.7712,128.68,128.67,22.4484]
[1726654557786,19.4234,128.72,128.67,22.4484]
[1726654557787,7.7706,128.69,128.67,22.4484]
[1726654560693,20.0,128.74,128.67,22.4484]
[1726654560869,19.4177,128.75,128.67,22.4484]
[1726654561369,38.8309,128.77,128.67,30.22]
[1726654561370,7.7675,128.74,128.67,30.22]
[1726654561996,7.7675,128.74,128.68,7.7711]
[1726654562200,7.7675,128.74,128.67,30.2201]
[1726654562371,7.7659,128.77,128.7,7.7699]
[1726654562582,297.1178,128.81,128.68,23.776884]
[1726654562583,7.7665,128.76,128.69,7.7705]
[1726654562973,7.7665,128.76,128.7,7.7699]
[1726654563176,7.7663,128.77,128.71,31.546184]
[1726654563372,7.7663,128.77,128.71,23.776884]
[1726654563787,19.4109,128.8,128.69,19.4255]
[1726654564081,7.7664,128.76,128.7,23.776884]
[1726654564286,19.4109,128.8,128.7,23.776884]
[1726654564493,7.767,128.75,128.7,23.776884]
[1726654564783,7.7664,128.76,128.7,23.776884]
[1726654565197,7.7672,128.75,128.69,27.1959]
[1726654566992,38.8209,128.8,128.67,22.4484]
[1726654567194,19.4213,128.73,128.67,22.4484]
[1726654567699,19.4213,128.73,128.62,7.7746]
[1726654567700,23.776884,128.72,128.63,15.1103]
[1726654567885,6.2363,128.75,128.63,15.1103]
[1726654567886,23.776884,128.7,128.63,15.1103]
[1726654568289,19.4274,128.69,128.63,15.1103]
[1726654568481,7.7731,128.65,128.63,15.1103]
[1726654568797,7.7724,128.66,128.63,15.1103]
[1726654569187,7.7736,128.64,128.63,15.1103]
[1726654712722,7.7719,128.67,128.62,14.4133]
[1726654713217,1.35361435,128.68,128.62,14.4133]
[1726654713218,7.7724,128.66,128.62,14.4133]
[1726654713423,7.772,128.67,128.62,14.4133]
[1726654713818,1.35361435,128.68,128.64,7.7732]
[1726654714023,1.35361435,128.68,128.65,15.3566]
[1726654714223,1.35361435,128.68,128.65,23.1295]
[1726654714702,1.35361435,128.68,128.65,15.3566]
[1726654715130,1.35361435,128.68,128.65,23.1295]
[1726654715927,1.35361435,128.68,128.65,15.3566]
[1726654716426,7.7731,128.65,128.62,21.9952]
[1726654716608,7.7737,128.64,128.59,29.7671]
[1726654717009,7.7732,128.65,128.6,7.7759]
[1726654717329,7.7732,128.65,128.6,19.4399]
[1726654717533,7.7725,128.66,128.61,7.7748]
[1726654717713,1.35361435,128.68,128.63,19.435]
[1726654717916,7.7722,128.67,128.63,19.435]
[1726654720027,1.35361435,128.68,128.61,23.776884]
[1726654720732,7.7725,128.66,128.61,31.552284]
[1726654721032,7.7718,128.67,128.63,7.7741]
[1726654721510,9.12521435,128.68,128.63,7.7741]
[1726654723120,7.7719,128.67,128.62,27.2112]
[1726654725330,7.7719,128.67,128.63,7.774]
[1726654725533,7.7719,128.67,128.62,27.2112]
[1726654726140,7.7719,128.67,128.63,7.7742]
[1726654726431,7.7719,128.67,128.62,27.2113]
[1726654726934,7.7719,128.67,128.63,7.7741]
[1726654728427,1.35361435,128.68,128.63,7.7741]
[1726654728634,7.7718,128.67,128.63,7.7741]
[1726654730129,7.7718,128.67,128.62,27.2112]
[1726654730434,7.7724,128.66,128.62,27.2112]
[1726654731331,7.772,128.67,128.62,27.2112]
[1726654731531,9.12501435,128.68,128.63,31.550784]
[1726654731733,1.35361435,128.68,128.63,31.550784]
[1726654732730,1.35361435,128.68,128.63,7.7739]
[1726654733329,7.7719,128.67,128.63,7.7739]
[1726654733515,7.7719,128.67,128.63,23.4536]
[1726654734934,9.12491435,128.68,128.63,23.4536]
[1726654737436,9.09473435,128.68,128.63,23.4536]
[1726654738009,7.7718,128.67,128.63,23.4536]
[1726654738640,7.7725,128.66,128.63,15.6797]
[1726654738936,7.7735,128.65,128.6,16.1951]
[1726654739236,1.32343435,128.68,128.6,16.1951]
[1726654739534,7.7752,128.62,128.6,16.1951]
[1726654740437,7.7754,128.61,128.59,6.1035]
[1726654740825,7.7749,128.62,128.59,6.1035]
[1726654741738,7.7743,128.63,128.59,6.1035]
[1726654742044,7.7743,128.63,128.59,13.8801]
[1726654742241,7.7738,128.64,128.59,13.8801]
[1726654742537,7.7735,128.65,128.6,7.7759]
[1726654742743,1.32343435,128.68,128.59,6.1035]
[1726654742744,1.32343435,128.68,128.61,19.4382]
[1726654744448,7.7724,128.66,128.62,16.5314]
[1726654745346,7.7724,128.66,128.62,24.306]
[1726654745848,7.7718,128.67,128.63,7.7742]
[1726654746443,9.09483435,128.68,128.64,6.0239]
[1726654746628,1.32343435,128.68,128.65,7.7729]
[1726654746832,9.09483435,128.68,128.64,6.0239]
[1726654747031,1.32343435,128.68,128.64,13.797]
[1726654747232,9.09463435,128.68,128.64,13.797]
[1726654748839,1.32343435,128.68,128.64,13.797]
[1726654750133,1.32343435,128.68,128.64,13.7974]
[1726654750930,1.32343435,128.68,128.65,7.7729]
[1726654751341,1.32343435,128.68,128.64,33.231]
[1726654754558,1.32343435,128.68,128.65,7.773]
[1726654755830,1.32343435,128.68,128.64,25.4576]
[1726654757056,1.32343435,128.68,128.65,7.7725]
[1726654757359,1.32343435,128.68,128.66,7.7723]
[1726654758151,1.32343435,128.68,128.67,7.7718]
[1726654758350,1.32343435,128.68,128.67,23.8867]
[1726654758548,1.32343435,128.68,128.67,16.1149]
[1726654758856,1.32343435,128.68,128.67,47.663584]
[1726654761346,1.32343435,128.68,128.67,54.114184]
[1726654765862,1.32343435,128.68,128.67,22.5655]
[1726654766240,1.32343435,128.68,128.67,30.3373]
[1726654768550,1.32343435,128.68,128.67,16.1149]
[1726654768743,1.32343435,128.68,128.66,19.4296]
[1726654769063,9.09473435,128.68,128.64,24.2325]
[1726654769236,1.32343435,128.68,128.64,24.2325]
[1726654769565,1.32343435,128.68,128.65,7.773]
[1726654771564,1.32343435,128.68,128.66,7.7723]
[1726654771871,1.32343435,128.68,128.65,27.205]
[1726654772343,1.32343435,128.68,128.66,7.7723]
[1726654773060,1.32343435,128.68,128.67,7.7718]
[1726654781846,1.32343435,128.68,128.67,31.548684]
[1726654786772,1.32343435,128.68,128.66,7.7723]
[1726654787679,1.32343435,128.68,128.64,16.459]
[1726654787975,9.09483435,128.68,128.64,16.459]
[1726654788175,1.32343435,128.68,128.64,16.459]
[1726654788361,7.7718,128.67,128.64,16.459]
[1726654788552,9.09473435,128.68,128.64,16.459]
[1726654789661,1.32343435,128.68,128.64,24.2325]
[1726654790974,1.32343435,128.68,128.64,23.2325]
[1726654791149,9.09463435,128.68,128.64,23.2325]
[1726654792181,1.32343435,128.68,128.64,23.2325]
[1726654792360,1.32343435,128.68,128.65,7.7726]
[1726654792862,1.32343435,128.68,128.64,42.6655]
[1726654793057,1.32343435,128.68,128.65,31.549484]
[1726654793555,1.32343435,128.68,128.66,7.7724]
[1726654793749,1.32343435,128.68,128.64,42.6651]
[1726654794274,1.32343435,128.68,128.65,7.7729]
[1726654794855,1.32343435,128.68,128.64,42.6654]
[1726654795078,9.09463435,128.68,128.64,34.892]
[1726654795276,1.32343435,128.68,128.64,42.6654]
[1726654796057,1.32343435,128.68,128.65,7.7729]
[1726654797267,1.32343435,128.68,128.67,7.7718]
[1726654797456,1.32343435,128.68,128.67,31.548684]
[1726654797649,1.32343435,128.68,128.66,19.4305]
[1726654799582,1.32343435,128.68,128.66,27.2028]
[1726654800263,1.32343435,128.68,128.67,7.7718]
[1726654801480,1.32343435,128.68,128.66,19.4305]
[1726654802060,1.32343435,128.68,128.66,27.2028]
[1726654802471,1.32343435,128.68,128.67,7.7718]
[1726654802787,1.32343435,128.68,128.66,27.2026]
[1726654803570,1.32343435,128.68,128.66,19.4305]
[1726654803771,1.32343435,128.68,128.66,27.2029]
[1726654803977,1.32343435,128.68,128.67,7.7718]
[1726654804377,1.32343435,128.68,128.66,27.2027]
[1726654806177,1.32343435,128.68,128.67,7.7718]
[1726654807465,1.32343435,128.68,128.67,31.548684]
[1726654814387,1.32343435,128.68,128.64,15.459]
[1726654814563,1.32343435,128.68,128.61,15.1125]
[1726654814990,1.32343435,128.68,128.62,7.7743]
[1726654814991,7.7719,128.67,128.62,7.7743]
[1726654815489,9.09463435,128.68,128.63,7.7742]
[1726654815687,7.7718,128.67,128.63,7.7742]
[1726654815894,1.32343435,128.68,128.64,7.7735]
[1726654816062,9.09463435,128.68,128.64,7.7735]
[1726654816889,9.09463435,128.68,128.63,31.550984]
[1726654817098,7.7719,128.67,128.63,23.776884]
[1726654817385,7.7734,128.65,128.61,15.1125]
[1726654817595,1.32343435,128.68,128.61,15.1125]
[1726654818577,7.7719,128.67,128.62,31.551584]
[1726654819866,1.32343435,128.68,128.62,23.776884]
[1726654820073,1.32343435,128.68,128.62,31.551584]
[1726654821171,1.32343435,128.68,128.66,7.7722]
[1726654821369,1.32343435,128.68,128.65,27.2047]
[1726654822773,1.32343435,128.68,128.65,19.4318]
[1726654822974,9.09473435,128.68,128.63,7.774]
[1726654823898,1.32343435,128.68,128.64,7.7735]
[1726654824196,1.32343435,128.68,128.65,27.2048]
[1726654825075,1.32343435,128.68,128.67,7.7718]
[1726654825383,1.32343435,128.68,128.67,31.548684]
[1726654829091,1.32343435,128.68,128.66,7.7722]
[1726654829398,1.32343435,128.68,128.67,7.7718]
[1726654830391,1.32343435,128.68,128.67,31.548684]
[1726654831776,1.32343435,128.68,128.67,23.776884]
[1726654831979,1.32343435,128.68,128.67,7.7718]
[1726654833284,1.32343435,128.68,128.67,31.548684]
[1726654851604,1.32343435,128.68,128.67,37.865584]
[1726654852519,7.7659,128.77,128.72,27.1901]
[1726654853714,7.4369,128.78,128.72,27.1901]
[1726654853715,15.2024,128.78,128.73,31.544684]
[1726654854297,1.2006,128.78,128.74,19.4184]
[1726654854608,1.2006,128.78,128.75,7.7668]
[1726654854812,1.2006,128.78,128.74,19.4184]
[1726654855007,1.2006,128.78,128.73,23.776884]
[1726654855008,1.2006,128.78,128.76,19.4156]
[1726654855316,7.7646,128.79,128.74,7.7673]
[1726654855514,7.7652,128.78,128.74,7.7673]
[1726654856799,7.7629,128.82,128.78,7.765]
[1726654857111,7.7631,128.82,128.77,31.542484]
[1726654857422,7.7631,128.82,128.77,31.542384]
[1726654857597,7.7631,128.82,128.78,7.7649]
[1726654858194,7.4369,128.85,128.78,19.4123]
[1726654858801,7.7626,128.83,128.78,27.1773]
[1726654859304,7.7627,128.82,128.78,27.1773]
[1726654859503,7.7627,128.82,128.78,19.4123]
[1726654861619,7.7641,128.8,128.75,27.1832]
[1726654861802,7.7634,128.81,128.76,7.7663]
[1726654861994,7.7641,128.8,128.76,7.7663]
[1726654862195,7.7641,128.8,128.75,27.1832]
[1726654862602,23.776884,128.84,128.75,19.4164]
[1726654862792,7.7641,128.8,128.75,27.1829]
[1726654863208,7.7647,128.79,128.75,19.4164]
[1726654864020,7.7651,128.78,128.74,16.4931]
[1726654864229,7.7651,128.78,128.74,24.2606]
[1726654864437,7.7647,128.79,128.74,24.2606]
[1726654867732,7.763,128.82,128.77,7.7653]
[1726654867910,23.776884,128.84,128.77,7.7653]
[1726654867911,7.7635,128.81,128.77,7.7655]
[1726654868115,23.776884,128.84,128.76,19.4151]
[1726654868312,7.7639,128.8,128.76,19.4151]
[1726654868829,7.764,128.8,128.76,27.1813]
[1726654869816,7.7628,128.82,128.78,7.765]
[1726654870015,7.7626,128.83,128.78,7.765]
[1726654871225,7.7617,128.84,128.79,7.7645]
[1726654873641,7.761,128.85,128.8,7.7639]
[1726654873930,58.1872,128.9,128.82,7.7623]
[1726654873931,7.7598,128.87,128.82,7.7623]
[1726654874326,7.7593,128.88,128.83,7.762]
[1726654874529,7.7597,128.87,128.82,7.7625]
[1726654874719,19.3955,128.9,128.8,19.4092]
[1726654874920,7.7616,128.84,128.8,19.4092]
[1726654875121,7.7617,128.84,128.8,19.4092]
[1726654875528,7.7611,128.85,128.8,27.1731]
[1726654877921,7.7623,128.83,128.79,23.776884]
[1726654878128,7.7623,128.83,128.78,22.8594]
[1726654878129,7.7627,128.82,128.78,15.0946]
[1726654878336,19.4013,128.86,128.78,15.0946]
[1726654878337,7.7634,128.81,128.78,15.0946]
[1726654878642,7.7636,128.81,128.78,15.0946]
[1726654878829,23.776884,128.85,128.78,15.0946]
[1726654879141,7.7628,128.82,128.78,22.8597]
[1726654879439,7.7618,128.84,128.79,7.7642]
[1726654879742,1.2006,128.92,128.78,15.0946]
[1726654879918,7.7592,128.88,128.83,7.762]
[1726654880125,7.7592,128.88,128.83,27.167]
[1726654881941,7.7587,128.89,128.84,22.9492]
[1726654882625,7.7597,128.87,128.84,15.1877]
[1726654882825,7.7597,128.87,128.79,6.6603]
[1726654882826,7.7609,128.86,128.81,22.9509]
[1726654883026,7.7609,128.86,128.82,7.7627]
[1726654883216,7.7609,128.86,128.81,22.951]
[1726654883552,7.7611,128.85,128.81,15.1877]
[1726654883727,7.7605,128.86,128.81,22.9509]
[1726654884131,7.7605,128.86,128.82,7.7626]
[1726654887258,7.7605,128.86,128.81,22.9509]
[1726654887426,23.776884,128.89,128.79,6.6603]
[1726654887427,7.7622,128.83,128.79,6.6603]
[1726654887753,19.4046,128.84,128.76,6.3099]
[1726654887931,24.977484,128.87,128.78,19.412]
[1726654888125,7.7634,128.81,128.76,14.0761]
[1726654888553,7.7641,128.8,128.76,14.0761]
[1726654888845,19.4044,128.84,128.75,16.3825]
[1726654889048,23.776884,128.83,128.75,16.3825]
[1726654889353,7.7652,128.78,128.75,16.3825]
[1726654889940,7.7658,128.77,128.75,16.3825]
[1726654890530,7.7658,128.77,128.73,14.0848]
[1726654890743,7.7636,128.81,128.76,7.7663]
[1726654890944,23.776884,128.81,128.76,7.7663]
[1726654891151,23.776884,128.83,128.76,7.7663]
[1726654891454,7.7641,128.8,128.75,27.1835]
[1726654891645,7.7634,128.81,128.75,19.4167]
[1726654892033,19.4027,128.85,128.77,19.4139]
[1726654892229,7.7628,128.82,128.78,7.7647]
[1726654892433,7.7628,128.82,128.77,27.1795]
[1726654892947,7.7634,128.81,128.77,27.1795]
[1726654893142,7.7634,128.81,128.77,19.4139]
[1726654893540,7.7641,128.8,128.75,7.7665]
[1726654894127,7.7657,128.78,128.74,19.418]
[1726654894655,7.7665,128.76,128.72,15.8966]
[1726654894953,7.7671,128.75,128.71,19.4224]
[1726654895152,7.7671,128.75,128.71,27.1916]
[1726654896952,19.415,128.77,128.69,23.4899]
[1726654897251,7.7677,128.74,128.69,23.4902]
[1726654897845,7.7695,128.71,128.67,13.9996]
[1726654898039,7.7686,128.73,128.67,13.9996]
[1726654898354,7.7689,128.72,128.67,13.9996]
[1726654899145,23.776884,128.75,128.67,25.6562]
[1726654899431,23.776884,128.75,128.68,7.771]
[1726654899850,23.776884,128.75,128.67,33.4279]
[1726654900056,7.7691,128.72,128.68,7.771]
[1726654900355,38.8259,128.78,128.68,7.771]
[1726654900356,30.013184,128.79,128.69,19.4259]
[1726654900760,7.7674,128.75,128.7,7.7698]
[1726654901336,7.7665,128.76,128.71,7.7691]
[1726654901871,7.7665,128.76,128.69,19.4259]
[1726654902031,7.7665,128.76,128.71,7.7693]
[1726654902235,7.7665,128.76,128.72,7.7687]
[1726654903032,7.7658,128.77,128.72,7.7687]
[1726654903239,7.7658,128.77,128.73,7.7681]
[1726654903539,7.7658,128.77,128.72,23.6053]
[1726654903740,7.7668,128.76,128.72,15.8366]
[1726654903947,7.7672,128.75,128.72,15.8366]
[1726654904455,7.7671,128.75,128.72,15.8366]
[1726654905233,7.7665,128.76,128.72,23.6052]
[1726654905435,7.7665,128.76,128.72,15.8366]
[1726654906166,7.767,128.75,128.72,15.8366]
[1726654906336,7.7665,128.76,128.72,15.8366]
[1726654907159,7.7665,128.76,128.72,23.6053]
[1726654907858,7.767,128.75,128.72,15.8366]
[1726654911069,23.776884,128.79,128.72,23.605]
[1726654911868,7.7673,128.75,128.72,15.8366]
[1726654919256,7.7666,128.76,128.72,23.6053]
[1726654919875,7.7659,128.77,128.73,7.7681]
[1726654920079,7.7666,128.76,128.72,23.6053]
[1726654920962,7.7681,128.73,128.72,15.8366]
[1726654921158,62.601084,128.79,128.69,16.5336]
[1726654921362,7.7697,128.71,128.69,16.5336]
[1726654922960,19.419,128.74,128.69,16.5336]
[1726654922961,7.7688,128.72,128.69,16.5336]
[1726654923355,7.7684,128.73,128.69,16.5336]
[1726654925483,19.4157,128.77,128.69,35.96]
[1726654926065,7.7673,128.75,128.7,7.7698]
[1726654926264,19.4157,128.77,128.69,35.96]
[1726654926568,19.4157,128.77,128.69,16.5336]
[1726654926979,7.7689,128.72,128.69,16.5336]
[1726654927580,23.776884,128.74,128.69,16.5336]
[1726654927974,7.7689,128.72,128.69,16.5336]
[1726654929189,23.776884,128.76,128.69,16.5336]
[1726654929588,7.7681,128.74,128.69,16.5336]
[1726654931201,7.7683,128.73,128.69,16.5336]
[1726654931581,7.7677,128.74,128.69,24.3039]
[1726654939394,7.7684,128.73,128.69,16.5336]
[1726654939572,23.776884,128.75,128.69,16.5336]
[1726654939777,23.776884,128.75,128.67,6.2279]
[1726654940298,7.7695,128.71,128.67,6.2279]
[1726654941000,7.7689,128.72,128.67,13.9996]
[1726654941708,19.4195,128.74,128.69,7.7705]
[1726654941709,7.7677,128.74,128.69,7.7705]
[1726654942375,23.776884,128.75,128.67,6.2279]
[1726654942574,25.13063117,128.75,128.67,6.2279]
[1726654942804,7.7697,128.71,128.67,6.2279]
[1726654943601,25.13063117,128.75,128.67,13.9995]
[1726654943602,7.7688,128.72,128.67,13.9995]
[1726654944279,7.7682,128.73,128.68,7.7711]
[1726654944604,25.13063117,128.75,128.7,7.7698]
[1726654944605,7.7672,128.75,128.7,7.7698]
[1726654945380,7.7672,128.75,128.7,27.1941]
[1726654945693,7.7672,128.75,128.7,19.4243]
[1726654946480,7.7666,128.76,128.73,15.2814]
[1726654946686,7.7674,128.75,128.73,15.2814]
[1726654947204,7.7663,128.76,128.73,15.2814]
[1726654947686,20.69127813,128.81,128.73,15.2814]
[1726654947880,7.7656,128.78,128.73,23.0495]
[1726654948503,64.4477,128.82,128.74,7.7675]
[1726654948504,7.7647,128.79,128.74,7.7675]
[1726654948927,7.7647,128.79,128.73,15.2814]
[1726654948928,7.7647,128.79,128.73,23.0494]
[1726654949503,7.7645,128.8,128.74,7.7672]
[1726654950113,7.7645,128.8,128.75,7.7667]
[1726654950985,7.7645,128.8,128.74,27.1857]
[1726654951408,7.7646,128.79,128.74,27.1857]
[1726654952814,19.406,128.83,128.67,21.9246]
[1726654952815,23.776884,128.76,128.67,21.9246]
[1726654954307,7.7688,128.72,128.67,29.6963]
[1726654954492,7.7683,128.73,128.68,7.7709]
[1726654955710,23.776884,128.76,128.69,7.7702]
[1726654957322,7.7677,128.74,128.69,7.7702]
[1726654963604,7.766,128.77,128.72,7.7687]
[1726654963814,19.4063,128.83,128.73,16.3252]
[1726654963993,19.4063,128.83,128.74,7.7675]
[1726654963994,7.7649,128.79,128.74,7.7675]
[1726654964202,7.7649,128.79,128.75,6.0555]
[1726654965202,7.764,128.8,128.75,13.8222]
[1726654965403,7.7635,128.81,128.76,7.7663]
[1726654965615,9.45942818,128.85,128.75,25.4726]
[1726654965913,1.35326056,128.85,128.75,25.4726]
[1726654966118,7.7637,128.81,128.76,7.7661]
[1726654966416,7.7639,128.8,128.75,33.2394]
[1726654967610,7.7647,128.79,128.75,25.4726]
[1726654967918,7.7647,128.79,128.75,6.0555]
[1726654968512,7.7641,128.8,128.75,13.8224]
[1726654970412,7.7635,128.81,128.76,7.7663]
[1726654970921,7.7635,128.81,128.77,15.4683]
[1726654971621,7.7628,128.82,128.77,23.234]
[1726654971822,7.7634,128.81,128.77,15.4683]
[1726654972018,20.75732747,128.84,128.77,15.4683]
[1726654972317,23.776884,128.83,128.77,15.4683]
[1726654973025,19.4044,128.84,128.77,15.4683]
[1726654973207,7.7622,128.83,128.78,7.7649]
[1726654973520,7.7627,128.82,128.77,23.2339]
[1726654974223,7.7634,128.81,128.77,15.4683]
[1726654974406,7.7634,128.81,128.77,23.2339]
[1726654974715,7.7629,128.82,128.77,23.2339]
[1726654975593,7.7629,128.82,128.77,15.4683]
[1726654975893,7.7629,128.82,128.77,23.2339]
[1726654976093,7.7633,128.81,128.77,23.2339]
[1726654976297,7.7629,128.82,128.77,23.2339]
[1726654976796,7.7634,128.81,128.77,23.2339]
[1726654977423,7.7634,128.81,128.77,15.4683]
[1726654978208,7.7629,128.82,128.77,23.2338]
[1726654978406,20.75545248,128.85,128.79,15.0041]
[1726654978407,1.35285248,128.85,128.79,15.0041]
[1726654978612,19.3988,128.88,128.8,20.0]
[1726654978817,7.7613,128.85,128.8,47.1729]
[1726654979010,7.7604,128.86,128.81,28.9835]
[1726654980109,7.7615,128.85,128.81,28.9837]
[1726654980708,7.7615,128.85,128.81,21.2205]
[1726654982522,7.7616,128.84,128.81,21.2205]
[1726654982723,7.7622,128.83,128.81,21.2205]
[1726654982910,7.7617,128.84,128.81,21.2205]
[1726654984302,7.7609,128.85,128.81,28.9836]
[1726654985932,7.7605,128.86,128.81,28.9836]
[1726654986137,7.7605,128.86,128.82,7.7625]
[1726654987027,7.7599,128.87,128.83,7.7621]
[1726654987237,7.7592,128.88,128.85,16.1637]
[1726654987918,19.3945,128.91,128.85,16.1637]
[1726654987919,7.7598,128.87,128.85,16.1637]
[1726654988833,7.7603,128.86,128.85,16.1637]
[1726654990330,7.7611,128.85,128.82,15.9875]
[1726654991938,19.3995,128.87,128.82,15.9875]
[1726654992126,23.776884,128.86,128.82,15.9875]
[1726654992326,7.7617,128.84,128.82,15.9875]
[1726654992820,7.7621,128.83,128.82,15.9875]
[1726654993138,19.3995,128.87,128.82,15.9875]
[1726654993314,7.7611,128.85,128.82,15.9875]
[1726654993931,7.7605,128.86,128.82,35.394]
[1726654994139,23.776884,128.89,128.82,35.394]
[1726654994340,7.7609,128.85,128.82,15.9875]
[1726654995215,7.7605,128.86,128.82,15.9875]
[1726654995738,7.7605,128.86,128.82,23.75]
[1726654997031,19.3981,128.88,128.82,15.9875]
[1726654997620,7.7621,128.83,128.82,15.9875]
[1726654997928,7.7639,128.8,128.79,15.29]
[1726654998637,7.7645,128.79,128.78,6.0546]
[1726654998826,7.7651,128.78,128.76,15.29]
[1726654999026,7.7657,128.77,128.76,15.29]
[1726654999344,7.7652,128.78,128.76,15.29]
[1726655001142,7.7647,128.79,128.76,15.29]
[1726655003243,7.7653,128.78,128.76,15.29]
[1726655004020,7.7652,128.78,128.76,15.29]
[1726655005220,23.776884,128.81,128.72,19.4209]
[1726655005221,7.7657,128.77,128.72,19.4209]
[1726655005441,23.776884,128.81,128.73,15.377]
[1726655005750,7.7675,128.74,128.73,15.377]
[1726655007227,7.767,128.75,128.73,15.377]
[1726655008034,7.7665,128.76,128.73,15.377]
[1726655008529,7.767,128.75,128.73,15.377]
[1726655009248,7.7666,128.76,128.73,15.377]
[1726655010754,7.7674,128.75,128.73,15.377]